bitfinex/quotes_ETHUSD_20251212
["timestamp","ask_amount","ask_price","bid_price","bid_amount"]
[1765524217210,0.4625,3253.8,3253.4,3.07362694]
[1765524218520,0.4625,3253.8,3253.4,6.14733444]
[1765524218899,0.485,3253.9,3253.4,6.14733444]
[1765524219100,0.485,3253.9,3253.5,0.4564]
[1765524219309,0.485,3253.9,3253.6,3.07351856]
[1765524219511,0.9475,3253.9,3253.6,3.07351856]
[1765524220031,0.9475,3253.9,3253.5,3.52999413]
[1765524220396,0.9475,3253.9,3253.5,3.07359413]
[1765524220595,0.4625,3253.8,3253.5,3.07359413]
[1765524223331,0.485,3253.9,3253.4,3.55260259]
[1765524223497,0.485,3253.9,3253.5,0.4789]
[1765524224805,0.9397,3253.9,3253.5,0.4789]
[1765524225135,0.9397,3253.9,3253.4,3.07370259]
[1765524225136,0.4784,3253.6,3253.4,3.07370259]
[1765524225319,0.0224,3253.5,3253.3,3.65423208]
[1765524228340,0.0224,3253.5,3253.3,4.37493489]
[1765524228542,0.4547,3253.7,3253.3,4.37493489]
[1765524228845,0.4547,3253.7,3253.3,7.44873687]
[1765524229034,0.4547,3253.7,3253.3,7.92763687]
[1765524229234,0.6697,3253.9,3253.3,7.92763687]
[1765524229547,1.1244,3253.9,3253.3,7.20693406]
[1765524230750,0.4547,3253.8,3253.3,7.20693406]
[1765524235356,0.4547,3253.8,3253.3,4.13313208]
[1765524235541,0.4547,3253.8,3253.3,3.65423208]
[1765524236957,3.5280356,3253.8,3253.3,3.65423208]
[1765524237746,0.4784,3253.4,3253.2,0.58047529]
[1765524238052,0.0224,3253.2,3252.6,0.001]
[1765524238255,0.4738,3253.0,3252.6,0.001]
[1765524238418,0.4738,3253.0,3252.7,3.07432112]
[1765524238621,0.4547,3252.9,3252.7,3.07432112]
[1765524238925,0.0269,3252.8,3252.7,3.65479641]
[1765524239245,0.4547,3253.0,3252.7,3.65479641]
[1765524241055,0.4547,3253.0,3252.7,0.58047529]
[1765524241255,0.4784,3252.8,3252.7,0.58047529]
[1765524241618,0.4784,3252.8,3252.7,3.65484427]
[1765524241847,0.6394,3253.0,3252.7,3.65484427]
[1765524243557,0.1847,3253.2,3252.9,0.4878]
[1765524243744,0.4547,3253.3,3252.9,3.56193689]
[1765524245562,0.485,3253.5,3253.2,0.4878]
[1765524245939,0.9397,3253.5,3253.2,0.4878]
[1765524246261,4.01333195,3253.5,3253.2,0.4878]
[1765524246556,0.4784,3253.3,3253.0,3.55290305]
[1765524249150,3.55863195,3253.5,3253.2,0.4878]
[1765524249654,0.485,3253.5,3253.2,0.4878]
[1765524250368,3.55818111,3254.0,3253.4,0.4878]
[1765524250543,3.2579565,3253.9,3253.4,0.4878]
[1765524250742,3.7126565,3253.9,3253.4,0.9667]
[1765524250953,0.4547,3253.8,3253.4,0.9667]
[1765524251154,0.4547,3253.8,3253.4,4.04038683]
[1765524252064,0.4547,3253.8,3253.4,0.9667]
[1765524252271,3.2579565,3253.9,3253.4,3.56147259]
[1765524252460,0.4547,3253.8,3253.4,4.04037259]
[1765524252659,0.1847,3253.9,3253.4,4.27289287]
[1765524252862,0.1847,3253.9,3253.5,0.4789]
[1765524253062,0.6657,3253.9,3253.5,0.4789]
[1765524253264,0.6657,3253.9,3253.4,3.78509287]
[1765524253568,0.6657,3253.9,3253.4,4.26309287]
[1765524256480,0.002,3254.1,3253.8,0.4547]
[1765524256678,0.002,3254.1,3253.9,0.4547]
[1765524257788,0.002,3254.1,3253.9,0.45005]
[1765524257991,0.002,3254.1,3254.0,0.4547]
[1765524258893,0.002,3254.1,3253.8,3.07329143]
[1765524259096,0.002,3254.1,3253.8,3.54719143]
[1765524259602,0.002,3254.1,3254.0,0.4547]
[1765524260993,0.002,3254.1,3253.8,3.54714208]
[1765524262008,0.451,3253.9,3253.6,3.07347464]
[1765524262159,0.0534,3253.7,3253.5,3.07355016]
[1765524262355,0.447,3253.6,3253.4,3.07367758]
[1765524262583,0.9063,3253.6,3253.4,3.07367758]
[1765524263061,0.4593,3253.6,3253.4,3.07367758]
[1765524263262,0.0573,3253.5,3253.1,0.93955761]
[1765524263482,0.0573,3253.5,3253.1,0.6632]
[1765524263705,0.4593,3253.5,3253.2,0.58047529]
[1765524264100,0.451,3253.3,3253.2,0.58047529]
[1765524264405,0.451,3253.3,3252.8,3.79]
[1765524264604,0.0534,3253.2,3252.9,3.07409358]
[1765524266067,0.0534,3253.2,3252.8,3.5481301]
[1765524266397,0.5127,3253.2,3252.8,3.5481301]
[1765524277090,0.5127,3253.2,3252.8,3.0742301]
[1765524277480,0.5127,3253.2,3252.8,3.5481301]
[1765524281415,0.5127,3253.2,3252.8,3.0742301]
[1765524282091,0.5127,3253.2,3252.8,3.5481301]
[1765524285013,0.5127,3253.2,3252.8,3.0742301]
[1765524287318,0.5127,3253.2,3252.8,3.5331301]
[1765524288388,0.5127,3253.2,3252.8,0.4589]
[1765524288788,0.5127,3253.2,3252.8,3.53315005]
[1765524289423,0.5127,3253.2,3252.8,0.4589]
[1765524289715,0.4127,3252.9,3252.7,3.93115179]
[1765524289915,0.494,3253.2,3252.8,3.07424049]
[1765524290121,0.494,3253.2,3252.8,3.53994049]
[1765524290295,0.494,3253.2,3252.8,0.4657]
[1765524291323,0.494,3253.2,3252.8,3.53996542]
[1765524295897,0.494,3253.2,3252.8,3.99886542]
[1765524297196,0.494,3253.2,3252.8,0.4657]
[1765524298436,0.494,3253.2,3252.8,3.53997103]
[1765524298924,0.494,3253.2,3252.8,3.99887103]
[1765524301818,0.494,3253.2,3252.8,0.9246]
[1765524302124,3.56791125,3253.2,3252.8,0.4657]
[1765524302329,3.56791125,3253.2,3252.6,0.001]
[1765524302330,0.4507,3252.9,3252.6,0.001]
[1765524302530,0.0193,3252.8,3252.6,0.001]
[1765524302717,0.0193,3252.8,3252.4,3.0318153]
[1765524302936,0.0193,3252.8,3252.5,0.4589]
[1765524303230,3.07414408,3253.0,3252.5,3.53344957]
[1765524303412,4.28084961,3253.0,3252.5,0.4589]
[1765524305511,4.28084961,3253.0,3252.5,3.53345679]
[1765524306619,1.20670553,3253.0,3252.5,3.53345679]
[1765524306820,0.494,3253.0,3252.5,3.07455679]
[1765524307033,0.494,3253.0,3252.6,0.4589]
[1765524307221,3.55904022,3253.1,3252.6,0.4589]
[1765524307416,3.07382421,3253.3,3253.0,0.4657]
[1765524307417,0.485,3253.3,3253.0,0.4657]
[1765524307621,0.485,3253.3,3253.2,0.4657]
[1765524307822,0.485,3253.3,3252.8,0.4589]
[1765524308944,3.07389647,3253.2,3252.8,0.4589]
[1765524310217,4.05283755,3253.3,3252.8,0.4589]
[1765524310415,3.55883755,3253.3,3252.8,0.4589]
[1765524310648,3.55883755,3253.3,3252.8,3.5331657]
[1765524311243,3.55883755,3253.3,3252.9,0.4589]
[1765524314054,0.485,3253.3,3253.2,0.4591]
[1765524314229,0.1861,3253.9,3253.2,0.6442]
[1765524314230,1.10902499,3253.9,3253.2,0.6442]
[1765524314431,0.485,3253.8,3253.5,0.4591]
[1765524314754,0.9738,3253.8,3253.3,0.4997]
[1765524315457,3.0734241,3253.7,3253.3,0.4997]
[1765524316734,0.485,3253.8,3253.6,0.4929]
[1765524317962,3.55833664,3253.8,3253.6,0.4929]
[1765524319459,6.63167328,3253.8,3253.4,0.4719]
[1765524319622,4.04683664,3253.8,3253.4,0.4719]
[1765524319821,3.55833664,3253.8,3253.4,0.4719]
[1765524320253,4.04683664,3253.8,3253.4,0.4719]
[1765524320453,4.04683664,3253.8,3253.2,0.657]
[1765524320656,4.04683664,3253.8,3253.2,3.73089357]
[1765524320958,4.04683664,3253.8,3253.2,3.25899357]
[1765524321274,4.04683664,3253.8,3253.3,0.4719]
[1765524321636,7.12017328,3253.8,3253.3,0.4719]
[1765524321838,4.04683664,3253.8,3253.3,0.4719]
[1765524324561,7.12017328,3253.8,3253.3,0.4719]
[1765524325561,4.04683664,3253.8,3253.3,0.4719]
[1765524326458,3.55833664,3253.8,3253.3,3.54567182]
[1765524326626,3.55833664,3253.8,3253.4,0.4719]
[1765524328135,0.485,3253.8,3253.7,0.4929]
[1765524328649,3.0731602,3254.0,3253.7,0.9648]
[1765524328844,3.0731602,3254.0,3253.8,0.4929]
[1765524329045,3.0731602,3254.0,3253.9,0.4929]
[1765524329336,3.0731602,3254.0,3253.7,0.4719]
[1765524330366,3.0731602,3254.0,3253.7,0.46501]
[1765524334245,3.0731602,3254.0,3253.4,3.07368786]
[1765524334448,3.0731602,3254.0,3253.5,0.4719]
[1765524335870,3.0731602,3254.0,3253.5,3.54549878]
[1765524337483,3.0731602,3254.0,3253.3,6.14758414]
[1765524337777,3.0731602,3254.0,3253.6,0.4719]
[1765524340773,3.5616602,3254.0,3253.6,0.4719]
[1765524341491,3.0731602,3254.0,3253.6,0.4719]
[1765524342184,3.5616602,3254.0,3253.6,0.4719]
[1765524343483,3.0731602,3254.0,3253.6,0.4719]
[1765524344290,3.56008621,3254.1,3253.6,0.4719]
[1765524344490,3.56008621,3254.1,3253.6,3.5454092]
[1765524345258,3.56008621,3254.1,3253.7,0.4869]
[1765524345860,4.05778621,3254.1,3253.7,0.4869]
[1765524347088,3.56008621,3254.1,3253.4,6.14739883]
[1765524347290,3.56008621,3254.1,3253.7,0.4869]
[1765524347670,4.05778621,3254.1,3253.7,0.4869]
[1765524348988,0.4977,3254.0,3253.5,0.4869]
[1765524351896,0.4739,3253.6,3253.3,0.92276602]
[1765524352114,0.0047,3253.4,3252.9,4.13858788]
[1765524352289,0.0047,3253.4,3253.1,3.99678582]
[1765524352797,0.0047,3253.4,3253.3,3.07380198]
[1765524353189,0.0047,3253.4,3253.2,3.07387312]
[1765524353793,0.0047,3253.4,3253.1,4.14131352]
[1765524353986,0.0047,3253.4,3253.1,7.21530448]
[1765524354190,0.1809,3253.9,3253.3,0.4502]
[1765524354491,0.9817,3253.8,3253.3,0.4502]
[1765524354896,0.4977,3253.7,3253.3,0.4502]
[1765524355564,0.4977,3253.7,3253.1,3.83441352]
[1765524356204,0.4977,3253.7,3253.1,4.32131352]
[1765524356496,3.5711393,3253.7,3253.1,4.32131352]
[1765524356729,0.4977,3253.7,3253.1,4.32131352]
[1765524357004,0.4977,3253.7,3253.1,7.39530448]
[1765524358407,0.4977,3253.7,3253.2,0.4869]
[1765524360512,0.4977,3253.7,3253.3,3.07380198]
[1765524361493,3.57118243,3253.7,3253.2,3.56075556]
[1765524361694,0.4977,3253.6,3253.2,3.07385556]
[1765524361896,0.4977,3253.6,3253.1,3.8344176]
[1765524362500,0.4977,3253.6,3253.2,3.07388569]
[1765524365113,3.57122063,3253.6,3253.1,3.8344187]
[1765524365316,0.4977,3253.6,3253.1,3.8344187]
[1765524365506,0.4977,3253.5,3253.1,3.8344187]
[1765524366807,0.4977,3253.5,3253.1,4.3213187]
[1765524367220,0.4977,3253.5,3253.1,7.39530966]
[1765524367626,3.55737804,3253.8,3253.1,7.39530966]
[1765524367920,0.4977,3253.7,3253.1,7.39530966]
[1765524369519,3.57112675,3253.7,3253.1,4.3213187]
[1765524370225,0.4977,3253.7,3253.1,4.3213187]
[1765524373425,0.4977,3253.7,3253.1,7.39530966]
[1765524376299,3.57115098,3253.7,3253.1,4.3213187]
[1765524376796,0.4848,3253.6,3253.1,4.3213187]
[1765524377598,0.4581,3253.2,3253.0,0.92284834]
[1765524377828,0.0331,3253.1,3252.8,0.58047529]
[1765524378023,0.4539,3252.9,3252.8,0.58047529]
[1765524378236,0.4539,3252.9,3252.4,0.4775]
[1765524378419,0.0373,3252.8,3252.4,4.0368601]
[1765524379928,0.0373,3252.8,3252.4,3.5593601]
[1765524380134,0.0373,3252.8,3252.5,0.4775]
[1765524383819,0.2557,3252.6,3252.4,0.4848]
[1765524384129,0.2468,3252.5,3252.3,0.001]
[1765524384329,0.2468,3252.5,3252.3,3.0756979]
[1765524385308,0.35961888,3252.8,3252.4,0.495]
[1765524385629,0.4601,3252.7,3252.4,0.495]
[1765524390608,3.43397446,3252.8,3252.4,0.495]
[1765524390810,0.35961888,3252.8,3252.4,0.9679]
[1765524391003,0.68,3252.9,3252.4,0.9679]
[1765524391203,0.4601,3252.8,3252.4,0.9679]
[1765524391738,0.4601,3252.8,3252.4,0.495]
[1765524392536,3.53440015,3252.8,3252.4,0.495]
[1765524393850,3.53440015,3252.8,3252.4,0.9679]
[1765524395850,0.4601,3252.8,3252.4,0.9679]
[1765524396369,3.53438067,3252.8,3252.4,0.9679]
[1765524396867,0.68,3252.9,3252.4,9.24206752]
[1765524396868,0.484,3252.9,3252.4,9.24206752]
[1765524397061,0.484,3252.9,3252.8,0.495]
[1765524397559,0.196,3253.4,3252.8,0.495]
[1765524397858,0.485,3253.4,3253.1,0.495]
[1765524398023,1.10388178,3253.9,3253.3,6.16743473]
[1765524398227,0.485,3253.9,3253.8,0.495]
[1765524398418,0.84100681,3253.9,3253.8,0.495]
[1765524398650,0.485,3253.9,3253.8,0.495]
[1765524399020,0.485,3253.9,3253.6,5.81926473]
[1765524399256,0.4601,3253.9,3253.6,5.34636473]
[1765524399927,0.4714,3253.7,3253.4,0.9227944]
[1765524400139,0.4714,3253.7,3253.4,3.99648277]
[1765524400322,0.4714,3253.7,3253.4,3.07368837]
[1765524400522,0.4714,3253.7,3253.4,3.72978837]
[1765524401356,0.4714,3253.7,3253.5,3.07357816]
[1765524401647,0.6561,3253.9,3253.5,3.07357816]
[1765524402250,0.4601,3253.8,3253.5,3.07357816]
[1765524402454,0.4621,3254.1,3253.5,8.74601289]
[1765524402649,0.4601,3254.0,3253.5,8.74601289]
[1765524404430,0.4601,3254.0,3253.5,9.08661289]
[1765524404622,0.4601,3254.0,3253.5,3.41417816]
[1765524404969,0.461,3253.6,3253.4,0.6561]
[1765524405128,0.461,3253.5,3253.0,0.58047529]
[1765524405328,0.461,3253.5,3253.1,3.99685474]
[1765524405572,0.9267,3253.5,3253.1,3.99685474]
[1765524406159,0.9267,3253.5,3253.1,3.07397802]
[1765524406358,0.9267,3253.5,3253.2,3.07387932]
[1765524406677,0.461,3253.5,3253.3,3.07377306]
[1765524406828,0.461,3253.5,3253.2,5.67243473]
[1765524406829,0.461,3253.5,3253.2,8.74629045]
[1765524409938,0.9267,3253.5,3253.2,8.74629045]
[1765524411269,0.461,3253.3,3252.8,5.67243473]
[1765524411469,0.461,3253.2,3253.0,3.07406369]
[1765524416364,0.4657,3253.5,3253.1,0.3406]
[1765524416568,0.4657,3253.4,3253.1,0.3406]
[1765524417366,3.07355954,3253.6,3253.1,3.41455413]
[1765524417548,0.4657,3253.5,3253.1,3.41455413]
[1765524419072,0.9497,3253.7,3253.1,12.16097982]
[1765524419253,0.002,3254.1,3253.6,0.3406]
[1765524419452,0.486,3254.1,3253.9,5.67243473]
[1765524419765,0.9517,3254.1,3253.9,5.67243473]
[1765524419968,0.486,3254.1,3253.9,5.67243473]
[1765524420141,0.9517,3254.1,3253.9,5.67243473]
[1765524420866,0.486,3254.1,3253.9,5.67243473]
[1765524421068,0.486,3254.1,3254.0,0.3406]
[1765524421643,0.002,3254.1,3254.0,0.3406]
[1765524421852,0.002,3254.1,3254.0,4.35564421]
[1765524422284,0.002,3254.1,3254.0,4.01504421]
[1765524422584,0.002,3254.1,3254.0,10.51407894]
[1765524423955,0.002,3254.1,3254.0,10.5064384]
[1765524424781,0.002,3254.1,3254.0,10.50644103]
[1765524426088,0.002,3254.1,3254.0,10.02044103]
[1765524426296,0.002,3254.1,3254.0,9.67984103]
[1765524426581,0.463,3254.1,3254.0,5.66479682]
[1765524426758,0.463,3254.1,3253.8,3.07328295]
[1765524426759,0.9287,3254.1,3253.8,3.07328295]
[1765524426967,0.461,3254.0,3253.8,3.07328295]
[1765524427168,0.461,3253.9,3253.8,3.07328295]
[1765524427363,0.461,3253.9,3253.8,3.07332964]
[1765524428166,0.4657,3254.0,3253.8,3.07332964]
[1765524428372,0.002,3254.1,3253.8,3.41392964]
[1765524431164,0.002,3254.1,3253.7,8.73820494]
[1765524431165,0.461,3253.9,3253.7,8.73820494]
[1765524431657,0.461,3253.8,3253.7,8.73820494]
[1765524432959,0.4677,3254.1,3253.8,3.07332964]
[1765524435171,0.4941,3253.9,3253.7,8.73817435]
[1765524435560,0.4941,3253.9,3253.6,3.65396265]
[1765524435889,0.9511,3253.9,3253.7,3.07340527]
[1765524436891,0.4941,3253.9,3253.7,3.07340527]
[1765524437474,0.4941,3253.9,3253.6,3.07351856]
[1765524439281,0.984,3253.9,3253.6,3.07351856]
[1765524440668,0.4941,3253.9,3253.6,3.07351856]
[1765524441079,0.984,3253.9,3253.6,3.07351856]
[1765524442190,0.4941,3253.9,3253.6,3.07351856]
[1765524442595,0.4941,3253.9,3253.6,6.14703712]
[1765524443494,0.984,3253.9,3253.6,3.07351856]
[1765524446687,0.984,3253.9,3253.6,6.14703712]
[1765524446886,0.4941,3253.9,3253.6,6.14703712]
[1765524447490,0.4919,3254.1,3253.6,6.14703712]
[1765524447697,0.4919,3254.1,3253.6,6.48763712]
[1765524448816,0.4919,3254.1,3253.6,6.14703712]
[1765524449019,0.6523,3253.7,3253.1,5.66479682]
[1765524449188,0.4596,3253.6,3253.3,3.07375121]
[1765524449388,0.4596,3253.6,3253.4,3.07370414]
[1765524450112,0.4596,3253.6,3253.5,3.07361303]
[1765524450311,0.484,3253.9,3253.5,3.41421303]
[1765524450514,0.9739,3253.9,3253.6,0.3406]
[1765524450720,1.1666,3253.9,3253.5,3.0735757]
[1765524450888,1.1413765,3253.9,3253.4,3.0737075]
[1765524451212,0.4899,3253.8,3253.4,3.0737075]
[1765524452594,0.6767,3253.9,3253.3,6.14755641]
[1765524452792,1.1666,3253.9,3253.4,0.3406]
[1765524453726,0.4899,3253.8,3253.4,0.3406]
[1765524456618,0.6767,3253.9,3253.5,3.07361303]
[1765524456985,0.4899,3253.8,3253.5,8.74104232]
[1765524462437,0.4899,3253.8,3253.5,5.66742929]
[1765524463092,0.4899,3253.8,3253.5,8.74103729]
[1765524466307,0.484,3253.9,3253.7,0.3406]
[1765524466513,0.002,3254.1,3253.8,6.00802929]
[1765524466725,0.002,3254.1,3254.0,0.3406]
[1765524467111,0.002,3254.1,3254.0,0.6812]
[1765524467641,0.002,3254.1,3254.0,0.3406]
[1765524470223,0.002,3254.1,3254.0,3.41374074]
[1765524470631,0.002,3254.1,3254.0,0.3406]
[1765524470931,0.002,3254.1,3254.0,3.41374074]
[1765524473538,0.002,3254.1,3254.0,4.66324846]
[1765524473831,0.002,3254.1,3254.0,5.24372375]
[1765524474030,1.4048,3254.1,3253.2,0.486]
[1765524474230,0.0694,3253.7,3252.8,9.7337869]
[1765524474412,0.0694,3253.7,3253.2,3.0738464]
[1765524474612,0.4581,3253.6,3253.2,3.0738464]
[1765524474808,0.4581,3253.6,3253.3,3.07377135]
[1765524475535,0.4581,3253.6,3253.5,0.27635761]
[1765524476033,0.9188,3253.6,3253.5,0.27635761]
[1765524476623,0.9188,3253.6,3253.0,0.3406]
[1765524476624,0.4607,3253.6,3253.3,0.27635761]
[1765524476841,0.9441,3254.1,3253.5,4.27104593]
[1765524477136,0.002,3254.1,3254.0,0.3406]
[1765524477523,0.002,3254.1,3254.0,3.75434074]
[1765524478628,0.002,3254.1,3254.0,3.41374074]
[1765524478828,0.002,3254.1,3254.0,3.75434074]
[1765524480411,0.002,3254.1,3254.0,9.42177003]
[1765524482346,0.4627,3254.1,3254.0,5.66742929]
[1765524482636,0.002,3254.1,3254.0,6.00802929]
[1765524483255,0.9208,3254.1,3253.7,5.66742929]
[1765524483412,0.4607,3253.8,3253.7,5.66742929]
[1765524483812,0.9188,3253.8,3253.6,5.66742929]
[1765524484136,0.002,3254.1,3253.7,0.61695761]
[1765524484346,0.4581,3254.0,3253.9,5.66742929]
[1765524485441,0.9188,3254.0,3253.9,5.66742929]
[1765524486043,0.9188,3254.0,3253.9,5.6662899]
[1765524487140,0.9188,3254.0,3253.5,0.27635761]
[1765524487351,0.4607,3253.8,3253.7,0.27635761]
[1765524488640,0.4607,3253.8,3253.7,5.94291522]
[1765524489733,0.4581,3253.9,3253.7,5.94291522]
[1765524490912,0.002,3254.1,3253.7,5.94291522]
[1765524491113,0.4601,3254.1,3254.0,5.66655761]
[1765524491538,0.9208,3254.1,3254.0,5.66655761]
[1765524492240,0.002,3254.1,3254.0,15.08745596]
[1765524492441,0.002,3254.1,3254.0,16.97956108]
[1765524493216,0.002,3254.1,3254.0,17.56003637]
[1765524493844,0.002,3254.1,3254.0,17.68304497]
[1765524510658,0.002,3254.6,3254.1,0.58047529]
[1765524510835,0.002,3254.6,3254.5,0.58047529]
[1765524511035,0.002,3254.6,3254.5,0.92107529]
[1765524511234,0.002,3254.6,3254.5,1.26167529]
[1765524511435,0.002,3254.6,3254.5,1.38466536]
[1765524511668,0.002,3254.9,3254.6,0.3406]
[1765524511870,0.002,3254.9,3254.8,11.95007283]
[1765524512230,0.002,3254.9,3254.8,6.40649319]
[1765524512431,0.4839,3254.9,3254.8,6.06589319]
[1765524512630,0.9484,3254.9,3254.8,9.13827859]
[1765524514478,0.002,3254.9,3254.8,9.47887859]
[1765524514678,0.002,3254.9,3254.8,11.5253134]
[1765524515584,0.002,3254.9,3254.8,17.7723463]
[1765524515800,0.002,3255.0,3254.8,17.7723463]
[1765524515945,0.002,3255.0,3254.9,0.6812]
[1765524516146,0.002,3255.0,3254.9,2.83308672]
[1765524516393,0.002,3255.3,3255.1,0.3406]
[1765524516545,0.4645,3256.3,3255.8,6.14288346]
[1765524516755,0.4645,3256.3,3256.0,0.61695761]
[1765524516976,0.4645,3256.5,3256.0,0.61695761]
[1765524517555,0.4839,3256.1,3256.0,0.27635761]
[1765524517786,0.002,3256.1,3256.0,0.27635761]
[1765524517997,0.002,3256.1,3256.0,0.61695761]
[1765524518291,0.484,3257.2,3256.0,8.55377749]
[1765524518292,0.4645,3257.2,3256.0,8.55377749]
[1765524518444,0.4645,3257.5,3257.0,11.33311522]
[1765524518648,6.60417766,3257.5,3256.8,5.66655761]
[1765524519191,0.6704,3256.9,3256.7,0.92184165]
[1765524519483,0.9464,3256.8,3256.5,5.66655761]
[1765524519685,0.4819,3256.6,3256.5,5.65762335]
[1765524520060,0.9464,3256.6,3256.5,5.65762335]
[1765524520288,0.1885,3256.9,3256.5,5.99822335]
[1765524520491,0.1885,3256.9,3256.3,3.99291205]
[1765524520816,3.58481227,3256.9,3256.7,5.65762335]
[1765524520998,0.4645,3256.8,3256.7,5.65762335]
[1765524521179,0.9464,3256.8,3256.7,5.65762335]
[1765524523517,0.4819,3256.8,3256.7,5.65762335]
[1765524523705,0.966,3256.8,3256.7,5.65762335]
[1765524524105,0.966,3256.8,3256.7,6.579448]
[1765524525021,0.966,3256.8,3256.7,5.65762335]
[1765524528301,1.3884963,3256.8,3256.7,5.65762335]
[1765524530708,7.52953494,3256.8,3256.1,3.07112933]
[1765524530911,0.4831,3256.7,3256.3,5.65762335]
[1765524531424,0.4837,3256.4,3256.3,5.65762335]
[1765524531886,0.9678,3256.4,3256.3,5.65762335]
[1765524535295,0.9678,3256.4,3256.1,3.07114294]
[1765524535496,0.4828,3256.2,3256.1,3.34750055]
[1765524535991,0.4828,3256.2,3256.1,0.27635761]
[1765524536822,0.4828,3256.2,3256.1,3.34751635]
[1765524537121,0.9669,3256.2,3256.0,8.72883612]
[1765524537414,0.4841,3256.2,3256.0,9.30931141]
[1765524537922,0.4841,3256.4,3256.0,9.30931141]
[1765524538496,0.4841,3256.4,3255.9,3.34770374]
[1765524538497,0.4837,3256.1,3255.9,5.65762335]
[1765524538694,0.4828,3256.0,3255.9,6.23809864]
[1765524539095,0.9669,3256.0,3255.9,6.23809864]
[1765524541198,0.4828,3256.0,3255.9,9.30944604]
[1765524541398,0.9669,3256.0,3255.9,6.23809864]
[1765524541897,0.9669,3256.0,3255.9,5.65762335]
[1765524542308,4.44196339,3256.0,3255.6,0.92209666]
[1765524542509,4.44196339,3256.0,3255.3,3.07183943]
[1765524542510,0.682,3255.7,3255.3,0.58047529]
[1765524542821,0.4731,3255.4,3255.2,6.85620801]
[1765524543022,0.4836,3255.3,3255.2,6.85620801]
[1765524543198,0.4836,3255.3,3255.2,5.93398096]
[1765524543398,0.4836,3255.3,3255.2,5.65762335]
[1765524543705,0.9677,3255.3,3255.2,3.07200786]
[1765524544225,0.9677,3255.3,3255.1,8.72968047]
[1765524544518,0.4836,3255.3,3255.2,3.07200786]
[1765524544718,0.4841,3255.6,3255.2,3.68896547]
[1765524547220,3.55575031,3255.6,3255.1,0.58047529]
[1765524547396,0.4841,3255.5,3255.1,0.58047529]
[1765524548323,0.4841,3255.5,3255.1,3.65256862]
[1765524549123,3.55583556,3255.5,3255.1,0.58047529]
[1765524549423,0.4837,3255.2,3255.1,0.58047529]
[1765524549816,0.4841,3255.4,3255.1,0.58047529]
[1765524550433,0.4837,3255.2,3255.1,0.58047529]
[1765524551531,0.4837,3255.2,3255.1,3.65257752]
[1765524551822,0.4837,3255.2,3255.1,0.58047529]
[1765524552025,0.9678,3255.2,3255.1,0.58047529]
[1765524552227,0.4837,3255.2,3255.1,0.58047529]
[1765524553108,0.9814,3255.2,3254.9,3.07228718]
[1765524553310,0.4584,3255.1,3254.9,3.07228718]
[1765524553510,0.4584,3255.0,3254.8,3.34869569]
[1765524554225,0.4584,3254.9,3254.7,3.65291659]
[1765524554412,0.4584,3254.9,3254.8,3.34874301]
[1765524554605,3.07185627,3255.4,3254.8,3.34874301]
[1765524554831,0.4977,3255.2,3254.8,3.68934301]
[1765524555324,0.6453,3254.9,3254.7,3.07247219]
[1765524555525,0.4977,3255.2,3254.7,3.65295508]
[1765524556703,0.4977,3255.2,3254.8,5.93865948]
[1765524556945,0.484,3255.5,3255.0,0.27635761]
[1765524557231,0.9817,3255.5,3255.0,0.27635761]
[1765524557527,1.4068607,3255.5,3255.0,0.27635761]
[1765524557733,3.98090557,3255.5,3255.0,0.27635761]
[1765524557934,0.4977,3255.4,3255.0,0.27635761]
[1765524558317,0.4977,3255.4,3255.0,3.34854814]
[1765524560334,0.4977,3255.4,3255.0,3.07219053]
[1765524561305,0.484,3255.5,3255.3,0.3406]
[1765524561506,0.4566,3255.4,3254.9,3.07225551]
[1765524561712,0.4838,3255.2,3254.8,3.83272014]
[1765524561906,3.07163042,3255.6,3254.8,3.83272014]
[1765524561907,3.07163042,3255.6,3255.0,3.07217527]
[1765524562225,0.4566,3255.6,3255.1,3.4126818]
[1765524562426,0.484,3255.8,3255.5,0.3406]
[1765524562748,0.9406,3255.8,3255.5,0.3406]
[1765524562943,0.9406,3255.8,3255.3,5.66230187]
[1765524563512,0.9406,3255.8,3255.3,6.00290187]
[1765524563711,3.07129858,3256.0,3255.3,6.00290187]
[1765524564138,0.4566,3255.9,3255.3,6.00290187]
[1765524564326,0.4566,3255.9,3255.4,3.07181913]
[1765524567140,4.19869031,3256.1,3255.5,0.3406]
[1765524567311,4.92565773,3256.1,3255.5,0.3406]
[1765524567511,4.46905773,3256.1,3255.4,3.07181913]
[1765524567738,0.4566,3256.0,3255.4,3.07181913]
[1765524571738,3.52786283,3256.0,3255.4,3.07181913]
[1765524572143,0.4566,3256.0,3255.4,3.07181913]
[1765524575242,0.4566,3256.0,3255.4,6.41999587]
[1765524575544,0.1818,3256.3,3255.9,6.00290187]
[1765524576050,0.4838,3256.0,3255.9,5.66230187]
[1765524576575,0.4566,3256.2,3255.9,5.66230187]
[1765524576730,0.4838,3256.0,3255.9,5.66230187]
[1765524577150,0.1818,3256.3,3255.9,9.07421474]
[1765524577451,0.6384,3256.3,3255.9,9.07421474]
[1765524577952,0.4566,3256.2,3255.9,8.73361474]
[1765524579354,0.4838,3256.0,3255.7,0.58047529]
[1765524579653,0.4838,3256.0,3255.8,3.07139481]
[1765524579952,0.9404,3256.0,3255.8,3.07139481]
[1765524581355,0.9404,3256.0,3255.7,0.58047529]
[1765524581648,0.9404,3256.0,3255.7,3.65196666]
[1765524583050,0.9404,3256.0,3255.7,6.72350273]
[1765524583755,0.9404,3256.0,3255.7,3.65196666]
[1765524584255,0.9404,3256.0,3255.7,6.72350273]
[1765524585049,0.9404,3256.0,3255.7,3.65196666]
[1765524590149,0.9404,3256.0,3255.7,6.72350273]
[1765524591162,0.9404,3256.0,3255.7,3.65196666]
[1765524594036,0.4959,3256.3,3255.9,0.3406]
[1765524594258,0.4861,3256.0,3255.7,3.65196666]
[1765524595259,0.4959,3255.9,3255.7,3.65196666]